bitfinex-derivatives/quotes_SOLF0:USTF0_20250318
["timestamp","ask_amount","ask_price","bid_price","bid_amount"]
[1742258694419,0.05493715,126.87,126.84,30.3663]
[1742258695320,0.05493715,126.87,126.85,7.8836]
[1742258695819,0.05493715,126.87,126.86,7.8833]
[1742258697317,28.22,126.92,126.88,7.882]
[1742258697520,28.22,126.92,126.87,28.22]
[1742258698222,7.8807,126.91,126.87,28.22]
[1742258698420,362.99998283,126.93,126.87,28.22]
[1742258698622,0.0549549,126.9,126.88,0.05413872]
[1742258698827,0.0549549,126.9,126.89,7.8811]
[1742258699923,0.0549549,126.9,126.88,0.05413872]
[1742258700417,7.8814,126.89,126.88,0.05413872]
[1742258700626,0.0549549,126.9,126.88,0.05413872]
[1742258701028,7.9360549,126.9,126.88,0.05413872]
[1742258701231,0.0549549,126.9,126.88,0.05413872]
[1742258701431,7.8814,126.89,126.88,0.05413872]
[1742258706142,8.02597289,126.89,126.82,262.26246483]
[1742258706341,8.02597289,126.89,126.82,290.52246483]
[1742258706543,8.02597289,126.89,126.82,30.46246483]
[1742258706931,7.8852,126.83,126.82,2.20246483]
[1742258707138,36.38597289,126.83,126.78,43.69070804]
[1742258707637,7.8864,126.81,126.78,43.69070804]
[1742258708344,7.8864,126.81,126.77,2.30668547]
[1742258708932,362.99998283,126.8,126.76,10.92267701]
[1742258709137,8.02597289,126.78,126.76,10.92267701]
[1742258709333,8.02597289,126.78,126.76,7.701e-05]
[1742258709539,16.05194578,126.78,126.75,115.53667326]
[1742258709741,8.02597289,126.76,126.75,100.39507326]
[1742258709937,36.62597289,126.76,126.74,133.33660164]
[1742258710132,28.6,126.76,126.74,133.33660164]
[1742258710336,28.65333992,126.76,126.74,133.33660164]
[1742258712047,28.65333992,126.76,126.74,2.2644775]
[1742258714745,0.05333992,126.76,126.74,2.2644775]
[1742258714937,0.05333992,126.76,126.75,7.8901]
[1742258715841,28.62,126.81,126.74,33.0152775]
[1742258716042,28.62,126.81,126.75,2.1355]
[1742258716949,0.04986315,126.79,126.77,7.94660123]
[1742258717548,0.04986315,126.79,126.78,7.8883]
[1742258718458,268.24597289,126.84,126.8,7.887]
[1742258718754,8.02597289,126.86,126.77,28.62]
[1742258718947,28.62,126.85,126.78,30.7501]
[1742258719657,0.0576522,126.83,126.82,7.8857]
[1742258720354,0.0576522,126.83,126.81,7.8862]
[1742258720954,0.0576522,126.83,126.82,7.8858]
[1742258721347,362.99998283,126.88,126.81,30.6393]
[1742258721348,8.02597289,126.88,126.81,30.6393]
[1742258721548,28.6,126.88,126.81,30.6393]
[1742258721850,36.62597289,126.9,126.82,8.02597289]
[1742258722451,410.24363206,126.92,126.9,7.8806]
[1742258722653,410.24363206,126.92,126.86,28.6]
[1742258722852,410.24363206,126.92,126.9,0.05835955]
[1742258723257,410.29691515,126.92,126.9,0.05835955]
[1742258723455,399.67923881,126.92,126.9,0.05835955]
[1742258723752,399.67923881,126.92,126.84,28.6]
[1742258723957,8.02597289,126.89,126.82,30.7729]
[1742258724155,8.02597289,126.87,126.82,2.1529]
[1742258724958,0.05684255,126.86,126.83,0.05585326]
[1742258725159,7.94024255,126.86,126.83,0.05585326]
[1742258725355,28.62,126.85,126.83,0.05585326]
[1742258726259,36.5042,126.85,126.83,0.05585326]
[1742258726655,28.62,126.85,126.83,0.05585326]
[1742258727659,7.8845,126.84,126.83,0.05585326]
[1742258728154,28.62,126.85,126.83,0.05585326]
[1742258728359,7.8845,126.84,126.83,0.05585326]
[1742258728961,20.77665501,126.84,126.83,0.05585326]
[1742258729258,20.77215501,126.84,126.77,1.9919]
[1742258729458,12.89215501,126.84,126.77,1.9919]
[1742258729660,375.89213784,126.84,126.75,30.6688]
[1742258729959,12.89215501,126.82,126.75,2.0288]
[1742258730162,7.8872,126.8,126.75,2.0288]
[1742258730354,0.05245795,126.8,126.77,0.05385309]
[1742258731462,7.93945795,126.8,126.77,0.05385309]
[1742258731663,0.05245795,126.8,126.77,0.05385309]
[1742258734264,7.93985795,126.8,126.77,0.05385309]
[1742258734467,0.05245795,126.8,126.77,0.05385309]
[1742258734667,7.8883,126.78,126.77,0.05385309]
[1742258734867,0.05245795,126.8,126.77,0.05385309]
[1742258735170,7.888,126.79,126.77,0.05385309]
[1742258736063,0.05245795,126.8,126.77,0.05385309]
[1742258736771,7.8876,126.79,126.77,0.05385309]
[1742258737771,7.8883,126.78,126.77,0.05385309]
[1742258739168,36.5083,126.78,126.77,0.05385309]
[1742258740462,36.5083,126.78,126.77,5.309e-05]
[1742258746872,7.8883,126.78,126.77,5.309e-05]
[1742258747074,36.4883,126.78,126.77,5.309e-05]
[1742258749278,44.55561637,126.78,126.77,5.309e-05]
[1742258749765,7.8901,126.75,126.74,2.2644775]
[1742258749970,36.4701,126.75,126.74,2.2644775]
[1742258750573,36.4701,126.75,126.74,1.1227775]
[1742258752375,7.8901,126.75,126.74,1.1227775]
[1742258752570,36.54682585,126.76,126.74,1.1227775]
[1742258752970,28.65702585,126.76,126.74,1.1227775]
[1742258753175,0.05702585,126.76,126.74,1.1227775]
[1742258753574,8.06731637,126.8,126.74,1.1227775]
[1742258753774,28.6,126.79,126.74,29.7227775]
[1742258753978,399.50678283,126.81,126.76,7.8889]
[1742258754777,28.65064065,126.8,126.77,0.05533817]
[1742258754966,28.65064065,126.8,126.77,7.94413817]
[1742258755367,0.05064065,126.8,126.77,0.05533817]
[1742258755671,36.71795702,126.8,126.77,0.05533817]
[1742258755970,7.8878,126.79,126.77,0.05533817]
[1742258756674,44.60525702,126.8,126.77,0.05533817]
[1742258757070,7.888,126.79,126.77,0.05533817]
[1742258757473,36.71795702,126.8,126.77,0.05533817]
[1742258757671,7.8883,126.78,126.77,0.05533817]
[1742258757871,36.71795702,126.8,126.77,0.05533817]
[1742258758277,7.888,126.79,126.77,0.05533817]
[1742258758678,28.58,126.78,126.77,0.05533817]
[1742258758976,28.58,126.78,126.77,7.94423817]
[1742258759176,28.65064065,126.8,126.77,7.94423817]
[1742258759575,28.65064065,126.8,126.78,7.8882]
[1742258760074,36.71795702,126.8,126.77,0.05533817]
[1742258760574,28.65064065,126.8,126.77,0.05533817]
[1742258760771,28.65064065,126.8,126.78,7.8879]
[1742258761580,28.65064065,126.8,126.77,0.05533817]
[1742258762180,28.65064065,126.8,126.78,7.8879]
[1742258763178,36.53774065,126.8,126.77,7.94393817]
[1742258765081,7.8878,126.79,126.77,0.05533817]
[1742258765279,36.71795702,126.8,126.77,0.05533817]
[1742258765784,7.8881,126.79,126.77,0.05533817]
[1742258765985,0.05064065,126.8,126.77,0.05533817]
[1742258766283,399.54418283,126.85,126.82,7.8855]
[1742258766473,442.21037424,126.85,126.82,7.8855]
[1742258766676,434.32617424,126.85,126.82,7.8855]
[1742258766973,405.66617424,126.85,126.82,7.8855]
[1742258767177,405.66617424,126.85,126.79,28.68]
[1742258767377,405.72550463,126.85,126.82,0.05171761]
[1742258768182,413.60970463,126.85,126.82,0.05171761]
[1742258769681,370.94351322,126.85,126.82,0.05171761]
[1742258770181,7.8847,126.84,126.82,0.05171761]
[1742258770485,0.05933039,126.85,126.82,28.69171761]
[1742258770683,0.05933039,126.85,126.82,30.84171761]
[1742258771186,0.05933039,126.85,126.83,7.8848]
[1742258771488,0.05933039,126.85,126.83,10.0579]
[1742258772581,0.05933039,126.85,126.83,2.1731]
[1742258772977,7.8852,126.83,126.82,0.05171761]
[1742258787098,7.8852,126.83,126.82,1.761e-05]
[1742258787489,7.88,126.83,126.74,1.1227775]
[1742258787693,8.06731637,126.79,126.74,1.1227775]
[1742258787886,28.64,126.78,126.74,1.1227775]
[1742258788091,7.8901,126.75,126.74,1.1227775]
[1742258793597,0.05087269,126.76,126.74,1.1227775]
[1742258793795,28.84,126.79,126.74,1.1227775]
[1742258793995,28.92,126.8,126.75,2.1145]
[1742258794194,7.888,126.79,126.75,10.0043]
[1742258794900,0.06002061,126.78,126.76,0.0517824]
[1742258795097,7.94832061,126.78,126.76,0.0517824]
[1742258795505,0.06002061,126.78,126.76,0.0517824]
[1742258796399,36.7689,126.77,126.76,0.0517824]
[1742258803804,7.94852061,126.78,126.76,0.0517824]
[1742258804201,0.06002061,126.78,126.76,7.9409824]
[1742258805113,0.06002061,126.78,126.76,0.0517824]
[1742258805511,7.8889,126.77,126.76,0.0517824]
[1742258806013,0.06002061,126.78,126.76,7.9412824]
[1742258807013,0.06002061,126.78,126.77,7.8889]
[1742258808613,0.06002061,126.78,126.76,10.0673824]
[1742258808810,0.06002061,126.78,126.76,2.1781824]
[1742258809305,7.8889,126.77,126.76,2.1781824]
[1742258810317,36.6689,126.77,126.76,0.0517824]
[1742258814213,7.94862061,126.78,126.76,0.0517824]
[1742258814410,0.06002061,126.78,126.76,0.0517824]
[1742258814615,0.06002061,126.78,126.76,7.9412824]
[1742258815615,7.94862061,126.78,126.76,7.9412824]
[1742258816220,0.06002061,126.78,126.76,7.9412824]
[1742258816922,7.94832061,126.78,126.76,7.9412824]
[1742258817324,7.94832061,126.78,126.76,0.0517824]
[1742258817719,7.8889,126.77,126.76,0.0517824]
[1742258823222,7.8889,126.77,126.76,8.24e-05]
[1742258823527,15.95621637,126.77,126.76,8.24e-05]
[1742258825823,8.06731637,126.77,126.69,7.8936]
[1742258826020,8.06731637,126.75,126.69,7.8936]
[1742258826421,7.892,126.72,126.69,7.8936]
[1742258826722,36.612,126.72,126.69,7.8936]
[1742258826925,36.612,126.72,126.7,0.05564665]
[1742258828529,28.72,126.72,126.7,0.05564665]
[1742258828729,0.05660654,126.73,126.7,0.05564665]
[1742258828931,0.05660654,126.73,126.71,6.71207729]
[1742258829133,0.05660654,126.73,126.72,7.892]
[1742258829429,7.8898,126.76,126.71,6.71207729]
[1742258829626,7.8898,126.76,126.73,7.8909]
[1742258829818,36.629,126.77,126.73,7.8909]
[1742258830021,28.74,126.77,126.72,28.74]
[1742258830222,28.74,126.77,126.73,7.8911]
[1742258830430,0.05885032,126.76,126.73,7.94402166]
[1742258831135,10.61767634,126.78,126.73,8.12023803]
[1742258831526,10.61767634,126.78,126.75,7.89]
[1742258832028,10.61767634,126.78,126.73,8.12023803]
[1742258832229,10.66754526,126.78,126.73,8.12023803]
[1742258832536,7.93816892,126.78,126.73,8.12023803]
[1742258832725,7.93816892,126.78,126.75,7.89]
[1742258832926,0.04986892,126.78,126.73,8.12023803]
[1742258834633,0.04986892,126.78,126.76,7.8891]
[1742258835139,7.93816892,126.78,126.76,0.05666834]
[1742258835627,7.93816892,126.78,126.76,7.94616834]
[1742258835840,0.04986892,126.78,126.76,7.94616834]
[1742258836131,0.04986892,126.78,126.76,0.05666834]
[1742258837536,0.04986892,126.78,126.76,7.94586834]
[1742258837831,7.93816892,126.78,126.76,0.05666834]
[1742258838233,0.04986892,126.78,126.76,0.05666834]
[1742258838436,0.04986892,126.78,126.76,7.94586834]
[1742258839630,0.04986892,126.78,126.76,0.05666834]
[1742258839838,36.72731637,126.77,126.76,0.05666834]
[1742258840431,44.61621637,126.77,126.76,0.05666834]
[1742258841036,36.72731637,126.77,126.71,6.71207729]
[1742258841636,7.8918,126.73,126.71,6.71207729]
[1742258842136,28.66,126.74,126.71,2.44707729]
[1742258842440,7.892,126.72,126.71,2.5073986]
[1742258848038,16.01948041,126.73,126.71,2.5073986]
[1742258848742,0.06056404,126.73,126.71,2.5073986]
[1742258849541,0.06056404,126.73,126.72,7.892]
[1742258850741,0.06056404,126.73,126.71,10.3997986]
[1742258851542,0.06056404,126.73,126.72,7.892]
[1742258851942,0.06056404,126.73,126.72,10.0926]
[1742258853246,28.62,126.75,126.72,10.0926]
[1742258853247,8.06731637,126.79,126.75,7.8901]
[1742258853455,28.6,126.78,126.72,2.2006]
[1742258853744,8.06731637,126.79,126.72,2.2006]
[1742258853745,28.6,126.79,126.73,8.06731637]
[1742258853950,42.66619141,126.8,126.74,30.7197]
[1742258854350,0.05809074,126.78,126.76,0.05318097]
[1742258854653,42.66619141,126.8,126.76,0.05318097]
[1742258854950,331.64619141,126.82,126.8,7.887]
[1742258855345,339.53209141,126.82,126.74,30.7197]
[1742258855548,339.53209141,126.82,126.78,7.8878]
[1742258855752,0.05167667,126.79,126.77,0.05853253]
[1742258856245,331.62619141,126.82,126.77,0.05853253]
[1742258856450,71.24619141,126.82,126.77,28.61853253]
[1742258856650,71.24619141,126.82,126.79,7.8872]
[1742258857252,71.29986148,126.82,126.79,7.8872]
[1742258857648,50.60576148,126.82,126.79,7.8872]
[1742258857857,42.71986148,126.82,126.8,7.8869]
[1742258858046,0.05367007,126.82,126.8,7.8869]
[1742258858241,0.05367007,126.82,126.8,0.05478317]
[1742258858441,36.62731637,126.85,126.81,7.8859]
[1742258858850,36.4442,126.85,126.8,0.05478317]
[1742258859052,7.8842,126.85,126.81,7.886]
[1742258859253,10.61767634,126.86,126.8,28.61478317]
[1742258859449,8.06731637,126.85,126.8,28.61478317]
[1742258859649,0.05011348,126.84,126.8,28.61478317]
[1742258859851,0.05011348,126.84,126.8,36.50168317]
[1742258860154,7.8855,126.83,126.8,0.05478317]
[1742258860355,0.05011348,126.84,126.8,0.05478317]
[1742258860555,7.8861,126.82,126.8,0.05478317]
[1742258862149,7.8864,126.81,126.8,0.05478317]
[1742258865260,0.05011348,126.84,126.8,0.05478317]
[1742258865948,7.8855,126.83,126.8,7.94148317]
[1742258866151,0.05011348,126.84,126.8,7.94148317]
[1742258866353,0.05011348,126.84,126.8,0.05478317]
[1742258867651,7.8864,126.81,126.8,0.05478317]
[1742258868161,7.886,126.82,126.8,0.05478317]
[1742258870254,7.8852,126.83,126.8,7.94178317]
[1742258870654,7.8858,126.82,126.8,0.05478317]
[1742258871559,7.8864,126.81,126.8,0.05478317]
[1742258872157,7.8861,126.82,126.8,0.05478317]
[1742258872951,0.05011348,126.84,126.8,0.05478317]
[1742258873564,7.8854,126.83,126.8,7.94148317]
[1742258873861,0.05011348,126.84,126.8,0.05478317]
[1742258874458,7.8864,126.81,126.8,0.05478317]
[1742258876062,7.8861,126.82,126.8,0.05478317]
[1742258876758,13.04306475,126.83,126.8,0.05478317]
[1742258877162,13.04306475,126.83,126.8,7.94148317]
[1742258879564,13.04306475,126.83,126.8,0.05478317]
[1742258880268,13.04306475,126.83,126.8,7.94148317]
[1742258883169,0.05011348,126.84,126.8,0.05478317]
[1742258883362,0.05011348,126.84,126.8,5.21244792]
[1742258883667,28.4,126.88,126.82,5.15766475]
[1742258883865,33.57766475,126.89,126.84,5.15766475]
[1742258884261,7.8823,126.88,126.85,7.8836]
[1742258884470,33.57766475,126.89,126.84,5.15766475]
[1742258884666,28.42,126.89,126.84,7.28456475]
[1742258884864,0.0513389,126.88,126.85,0.0522797]
[1742258885064,10.61767634,126.9,126.86,33.57766475]
[1742258885670,10.61767634,126.9,126.88,7.8817]
[1742258886269,10.66807848,126.9,126.88,7.93989107]
[1742258886671,10.66807848,126.9,126.88,0.05819107]
[1742258886967,0.05040214,126.9,126.88,0.05819107]
[1742258888468,7.93120214,126.9,126.88,0.05819107]
[1742258888766,0.05040214,126.9,126.88,0.05819107]
[1742258888960,7.8814,126.89,126.88,0.05819107]
[1742258891677,7.8814,126.89,126.88,9.107e-05]
[1742258893773,8.09819773,126.9,126.82,1.9835]
[1742258894070,8.04779559,126.88,126.82,1.9835]
[1742258894267,7.8852,126.83,126.82,1.9835]
[1742258894970,7.8864,126.81,126.8,30.4814]
[1742258895369,7.8864,126.81,126.8,2.0214]
[1742258895874,36.56232026,126.84,126.79,0.05395344]
[1742258896076,8.04779559,126.82,126.79,0.05395344]
[1742258896272,28.48,126.81,126.79,0.05395344]
[1742258896776,7.887,126.8,126.79,0.05395344]
[1742258897575,15.93479559,126.8,126.79,5.344e-05]
[1742258899071,7.887,126.8,126.79,5.344e-05]
[1742258900773,36.42530269,126.81,126.79,5.344e-05]
[1742258901565,0.05860269,126.81,126.79,5.344e-05]
[1742258902169,0.05860269,126.81,126.79,7.88735344]
[1742258903166,0.05860269,126.81,126.79,5.344e-05]
[1742258904479,7.887,126.8,126.79,5.344e-05]
[1742258909083,13.04763338,126.8,126.79,5.344e-05]
[1742258911882,5.16063338,126.8,126.72,5.16063338]
[1742258912087,5.16063338,126.77,126.71,30.86707729]
[1742258912385,7.8918,126.73,126.71,30.86707729]
[1742258913187,7.94780058,126.73,126.71,30.91905138]
[1742258913588,0.05600058,126.73,126.71,30.91905138]
[1742258915290,0.05600058,126.73,126.71,2.49905138]
[1742258915491,0.05600058,126.73,126.71,10.39155138]
[1742258915790,0.05600058,126.73,126.71,2.49905138]
[1742258915992,28.42,126.76,126.71,2.49905138]
[1742258916484,7.8892,126.77,126.71,2.49905138]
[1742258916686,7.8892,126.77,126.71,2.44707729]
[1742258916885,7.8899,126.76,126.71,2.44707729]
[1742258917298,0.05708104,126.75,126.72,7.94318874]
[1742258917597,0.05708104,126.75,126.72,0.05158874]
[1742258917796,0.05708104,126.75,126.73,7.8914]
[1742258919501,0.05708104,126.75,126.74,7.8908]
[1742258919701,0.05708104,126.75,126.72,0.05158874]
[1742258921103,0.05708104,126.75,126.72,7.94338874]
[1742258921999,0.05708104,126.75,126.72,0.05158874]
[1742258923205,7.8908,126.74,126.72,0.05158874]
[1742258924204,7.8914,126.73,126.72,0.05158874]
[1742258924402,0.05708104,126.75,126.72,0.05158874]
[1742258925303,7.8914,126.73,126.72,0.05158874]
[1742258927407,7.8909,126.74,126.72,0.05158874]
[1742258927904,7.8914,126.73,126.72,0.05158874]
[1742258929806,0.05708104,126.75,126.72,0.05158874]
[1742258930703,0.05708104,126.75,126.72,7.94328874]
[1742258931305,7.94758104,126.75,126.72,7.94328874]
[1742258935009,0.05708104,126.75,126.74,7.8908]
[1742258935217,5.1630722,126.79,126.73,5.1630722]
[1742258935415,33.4830722,126.79,126.73,33.4830722]
[1742258935620,7.8886,126.78,126.75,7.8898]
[1742258936009,41.3709722,126.79,126.76,7.8892]
[1742258936504,33.53866504,126.79,126.76,0.0573078]
[1742258936815,7.8886,126.78,126.76,0.0573078]
[1742258939111,13.10666504,126.79,126.76,7.9464078]
[1742258939312,0.05559284,126.79,126.76,0.0573078]
[1742258939512,0.05559284,126.79,126.76,28.3573078]
[1742258939716,0.05559284,126.79,126.78,7.8883]
[1742258939917,0.05559284,126.79,126.77,5.1630722]
[1742258940116,5.21866504,126.79,126.76,0.0573078]
[1742258940316,33.53866504,126.79,126.76,0.0573078]
[1742258943712,5.1630722,126.77,126.76,0.0573078]
[1742258944519,13.0519722,126.77,126.76,0.0573078]
[1742258945517,13.0519722,126.77,126.76,7.8e-06]
[1742258946118,7.892,126.72,126.71,2.44707729]
[1742258947120,28.34,126.76,126.71,7.61014949]
[1742258947527,0.05335466,126.75,126.71,7.61014949]
[1742258948021,5.21642686,126.75,126.71,2.44707729]
[1742258949124,7.8918,126.73,126.71,2.44707729]
[1742258949525,5.21642686,126.75,126.71,2.44707729]
[1742258950929,7.8917,126.73,126.71,2.44707729]
[1742258951228,5.21642686,126.75,126.71,2.44707729]
[1742258951630,0.05335466,126.75,126.71,2.44707729]
[1742258952129,5.1630722,126.74,126.71,2.44707729]
[1742258952425,5.1630722,126.72,126.71,2.44707729]
[1742258952620,13.0550722,126.72,126.71,2.44707729]
[1742258953227,18.62901176,126.72,126.71,2.44707729]
[1742258954423,5.57393956,126.72,126.71,2.44707729]
[1742258955631,13.46593956,126.72,126.71,2.44707729]
[1742258956730,13.46593956,126.72,126.61,43.6736824]
[1742258956731,7.8943,126.69,126.61,43.6736824]
[1742258956936,5.1630722,126.62,126.59,133.58671356]
[1742258957228,7.9001,126.59,126.58,87.69987477]
[1742258957433,22.87055132,126.59,126.58,87.69987477]
[1742258957832,15.15772707,126.67,126.58,119.76294697]
[1742258958036,5.1630722,126.71,126.59,30.36]
[1742258958333,5.1630722,126.65,126.61,0.05850837]
[1742258958534,5.1630722,126.63,126.62,0.0541168]
[1742258959634,10.55184624,126.63,126.62,0.0541168]
[1742258961242,5.38877404,126.63,126.62,0.0541168]
[1742258963645,0.05918162,126.64,126.62,0.0541168]
[1742258964041,30.5,126.63,126.62,0.0541168]
[1742258965347,35.87080721,126.63,126.62,0.0541168]
[1742258968343,30.5,126.63,126.62,0.0541168]
[1742258968743,0.05918162,126.64,126.62,0.0541168]
[1742258968939,30.4,126.63,126.62,0.0541168]
[1742258969950,0.05918162,126.64,126.62,0.0541168]
[1742258971355,2.1941,126.71,126.62,38.49952112]
[1742258971356,30.36,126.68,126.62,38.49952112]
[1742258971559,2.1941,126.71,126.64,7.8964]
[1742258971855,30.36,126.7,126.64,7.8964]
[1742258972356,30.36,126.7,126.65,7.8962]
[1742258972556,0.05075802,126.68,126.66,0.0547029]
[1742258974267,0.05075802,126.68,126.67,7.8951]
[1742258974764,0.05075802,126.68,126.66,7.9501029]
[1742258976459,0.05075802,126.68,126.67,7.8951]
[1742258976859,362.99998283,126.81,126.67,268.42]
[1742258977056,362.99998283,126.81,126.69,8.08540432]
[1742258977057,4.0679,126.78,126.69,8.08540432]
[1742258977262,4.0679,126.78,126.71,8.08540432]
[1742258977457,4.0679,126.78,126.72,30.46]
[1742258977657,34.5279,126.78,126.74,7.8903]
[1742258977964,5.42000855,126.77,126.75,0.05096161]
[1742258978666,8.08540432,126.76,126.75,0.05096161]
[1742258978961,371.08538715,126.76,126.62,299.02540432]
[1742258979265,8.08540432,126.71,126.63,32.6638]
[1742258979469,38.60540432,126.71,126.67,7.8948]
[1742258980060,0.05262231,126.7,126.68,0.05595174]
[1742258981772,0.05262231,126.7,126.68,7.95015174]
[1742258982568,0.05262231,126.7,126.68,0.05595174]
[1742258983173,0.05262231,126.7,126.68,7.95035174]
[1742258983670,0.05262231,126.7,126.68,0.05595174]
[1742258984572,0.05262231,126.7,126.68,7.95045174]
[1742258986272,0.05262231,126.7,126.68,0.05595174]
[1742258986674,5.37517949,126.69,126.68,0.05595174]
[1742258986974,5.37517949,126.69,126.68,7.95045174]
[1742258987173,0.05262231,126.7,126.68,0.05595174]
[1742258987576,0.05262231,126.7,126.69,7.8939]
[1742258987771,0.05262231,126.7,126.68,0.05595174]
[1742258988578,5.38092187,126.69,126.68,0.05595174]
[1742258993076,5.38092187,126.69,126.68,7.95045174]
[1742258995078,0.05262231,126.7,126.69,7.8939]
[1742258995278,30.26,126.74,126.69,2.1579]
[1742258995584,30.26,126.74,126.72,7.8917]
[1742258996272,8.08540432,126.73,126.62,260.5]
[1742258996473,8.08540432,126.7,126.62,260.5]
[1742258996672,30.42,126.69,126.62,260.5]
[1742258996878,8.08540432,126.68,126.62,260.5]
[1742258997482,0.05913931,126.66,126.64,0.0505002]
[1742258998081,0.05913931,126.66,126.65,7.8964]
[1742258998583,0.05913931,126.66,126.64,7.9472002]
[1742258998789,0.05913931,126.66,126.64,0.0505002]
[1742258999884,0.05913931,126.66,126.65,7.8964]
[1742259000974,30.53913931,126.66,126.64,0.0505002]
[1742259002084,30.53913931,126.66,126.64,7.9472002]
[1742259002777,0.05913931,126.66,126.65,7.8964]
[1742259005178,0.05913931,126.66,126.64,7.9471002]
[1742259005785,0.05913931,126.66,126.65,7.8964]
[1742259005985,0.05913931,126.66,126.64,0.0505002]
[1742259007286,5.33142095,126.65,126.64,0.0505002]
[1742259007683,36.11142095,126.65,126.64,0.0505002]
[1742259009679,36.11142095,126.65,126.55,1.37443472]
[1742259009985,36.11142095,126.65,126.57,299.26540432]
[1742259010187,36.11142095,126.65,126.63,7.8973]
[1742259010484,5.33142095,126.64,126.63,7.8973]
[1742259010891,5.33142095,126.64,126.62,7.95138146]
[1742259011080,5.33142095,126.64,126.62,7.898]
[1742259011280,5.3864738,126.64,126.62,7.95166937]
[1742259011480,5.33142095,126.63,126.62,7.95166937]
[1742259012488,5.33142095,126.63,126.62,0.05366937]
[1742259014381,5.33443703,126.63,126.62,0.05366937]
[1742259018288,13.23203703,126.63,126.62,0.05366937]
[1742259018876,7.8998,126.6,126.56,2.42357275]
[1742259019082,30.52,126.59,126.56,2.42357275]
[1742259019484,30.52,126.59,126.58,7.9007]
[1742259019886,7.8994,126.61,126.58,7.9007]
[1742259020090,30.57865713,126.6,126.58,7.9007]
[1742259020893,30.57865713,126.6,126.57,7.95419794]
[1742259021190,38.47845713,126.6,126.57,7.95419794]
[1742259021384,30.57865713,126.6,126.57,0.05319794]
[1742259022185,5.19984878,126.59,126.57,0.05319794]
[1742259022483,13.2852531,126.59,126.57,0.05319794]
[1742259022887,5.19984878,126.58,126.56,2.42357275]
[1742259023084,30.48,126.57,126.56,2.42357275]
[1742259023279,5.19984878,126.58,126.53,2.44623402]
[1742259023482,5.19984878,126.57,126.53,2.44623402]
[1742259023884,35.71984878,126.57,126.53,2.44623402]
[1742259024190,0.05975634,126.56,126.55,7.9026]
[1742259027394,0.05975634,126.56,126.54,7.96306725]
[1742259027594,30.51975634,126.56,126.54,0.06016725]
[1742259028693,30.51975634,126.56,126.54,7.96316725]
[1742259029482,30.51975634,126.56,126.54,0.06016725]
[1742259030084,38.60516066,126.56,126.54,0.06016725]
[1742259032493,8.08540432,126.55,126.48,2.50999369]
[1742259032698,8.08540432,126.49,126.48,2.50999369]
[1742259032897,362.99998283,126.53,126.48,2.50999369]
[1742259033198,30.56,126.52,126.48,2.50999369]
[1742259033696,0.05429914,126.51,126.49,7.96159048]
[1742259034300,0.05429914,126.51,126.5,7.9057]
[1742259034496,8.13970346,126.51,126.49,0.05559048]
[1742259035395,0.05429914,126.51,126.49,0.05559048]
[1742259036593,0.05429914,126.51,126.5,7.9057]
[1742259037300,0.05429914,126.51,126.49,7.96169048]
[1742259037500,0.05429914,126.51,126.49,0.05559048]
[1742259037896,0.05429914,126.51,126.49,7.96169048]
[1742259038103,0.05429914,126.51,126.49,0.05559048]
[1742259039504,0.05429914,126.51,126.49,7.96139048]
[1742259039904,0.05429914,126.51,126.5,7.9057]
[1742259041821,393.69998283,126.58,126.53,7.9035]
[1742259042125,30.7,126.58,126.52,30.72]
[1742259042413,30.7,126.58,126.53,7.9035]
[1742259042612,30.7,126.58,126.5,291.54]
[1742259042816,30.7,126.58,126.53,7.9034]
[1742259043015,0.05667204,126.55,126.53,7.95972532]
[1742259043922,0.05667204,126.55,126.54,7.9032]
[1742259045022,30.68,126.61,126.54,30.68]
[1742259045224,32.7665,126.61,126.54,30.68]
[1742259045721,30.88,126.62,126.54,38.76540432]
[1742259045922,30.88,126.62,126.54,49.72545006]
[1742259046121,0.05694297,126.59,126.57,0.05334313]
[1742259046820,0.05694297,126.59,126.57,7.95424313]
[1742259048520,0.05694297,126.59,126.58,7.9007]
[1742259049117,7.95694297,126.59,126.57,0.05334313]
[1742259049325,8.08540432,126.56,126.55,43.64621601]
[1742259049631,38.98540432,126.58,126.55,43.64621601]
[1742259050319,38.98540432,126.58,126.55,43.69947993]
[1742259051823,38.98540432,126.58,126.55,0.05326392]
[1742259052020,8.08540432,126.56,126.55,0.05326392]
[1742259052526,13.25709526,126.56,126.55,0.05326392]
[1742259053525,5.17169094,126.56,126.55,0.05326392]
[1742259054034,30.9,126.58,126.56,7.9015]
[1742259054430,0.05694297,126.59,126.56,7.9015]
[1742259054629,30.92,126.58,126.56,7.9015]